[Event "Titled Tuesday Blitz August 1 Early 2023"]
[White "Vivas Zamora, Fabian Ernesto"]
[Black "Mirzanurov, Bulat"]
[WhiteFideId "3902480"]
[BlackFideId "4184521"]
[WhiteElo "2430"]
[BlackElo "2162"]
[Result "1-0"]
[Round "2"]
[TimeControl "180+1"]
[Date "2023.08.01"]
[WhiteClock "0:00:14"]
[BlackClock "0:00:12"]
[Board "244"]

1. e4 {[%clk 0:03:00]}  c5 {[%clk 0:02:59]} 2. Nf3 {[%clk 0:02:58]}  d6 {[%clk 0:02:59]} 3. d4 {[%clk 0:02:58]}  cxd4 {[%clk 0:03:00]} 4. Nxd4 {[%clk 0:02:59]}  Nf6 {[%clk 0:03:00]} 5. Nc3 {[%clk 0:03:00]}  a6 {[%clk 0:03:00]} 6. h3 {[%clk 0:02:57]}  e5 {[%clk 0:03:00]} 7. Nb3 {[%clk 0:02:53]}  Be6 {[%clk 0:02:55]} 8. g4 {[%clk 0:02:44]}  h6 {[%clk 0:02:37]} 9. Bg2 {[%clk 0:02:38]}  Be7 {[%clk 0:02:19]} 10. Be3 {[%clk 0:02:17]}  b5 {[%clk 0:02:11]} 11. Qd2 {[%clk 0:01:56]}  Nbd7 {[%clk 0:01:53]} 12. a4 {[%clk 0:01:13]}  b4 {[%clk 0:01:19]} 13. Nd5 {[%clk 0:01:13]}  Bxd5 {[%clk 0:01:17]} 14. exd5 {[%clk 0:01:13]}  a5 {[%clk 0:01:17]} 15. f4 {[%clk 0:00:56]}  exf4 {[%clk 0:01:13]} 16. Bxf4 {[%clk 0:00:55]}  Ne5 {[%clk 0:01:13]} 17. O-O-O {[%clk 0:00:48]}  Rc8 {[%clk 0:01:09]} 18. Bxe5 {[%clk 0:00:42]}  dxe5 {[%clk 0:01:09]} 19. d6 {[%clk 0:00:42]}  Bf8 {[%clk 0:01:09]} 20. Nxa5 {[%clk 0:00:35]}  Nd7 {[%clk 0:00:53]} 21. Qxb4 {[%clk 0:00:29]}  Qg5+ {[%clk 0:00:40]} 22. Kb1 {[%clk 0:00:28]}  g6 {[%clk 0:00:31]} 23. Bc6 {[%clk 0:00:23]}  Rd8 {[%clk 0:00:20]} 24. Nb7 {[%clk 0:00:21]}  Bg7 {[%clk 0:00:19]} 25. Nxd8 {[%clk 0:00:21]}  Qxd8 {[%clk 0:00:20]} 26. Qb5 {[%clk 0:00:20]}  O-O {[%clk 0:00:17]} 27. Bxd7 {[%clk 0:00:20]}  e4 {[%clk 0:00:17]} 28. Bc6 {[%clk 0:00:19]}  Qf6 {[%clk 0:00:16]} 29. Rhf1 {[%clk 0:00:17]}  Qh4 {[%clk 0:00:14]} 30. d7 {[%clk 0:00:17]}  Rd8 {[%clk 0:00:14]} 31. Bd5 {[%clk 0:00:17]}  Kh7 {[%clk 0:00:14]} 32. Bxf7 {[%clk 0:00:17]}  Qg3 {[%clk 0:00:14]} 33. Qb6 {[%clk 0:00:16]}  Rb8 {[%clk 0:00:13]} 34. Bxg6+ {[%clk 0:00:12]}  Kh8 {[%clk 0:00:14]} 35. Qxb8+ {[%clk 0:00:12]}  Qxb8 {[%clk 0:00:13]} 36. d8=Q+ {[%clk 0:00:13]}  Qxd8 {[%clk 0:00:12]} 37. Rxd8+ {[%clk 0:00:14]} 1-0


[Site "https://www.chess.com"]

[Event "Titled Tuesday Blitz August 1 Early 2023"]
[White "cycygogne"]
[Black "Pandey Srishti"]
[BlackFideId "35093290"]
[WhiteElo "2149"]
[BlackElo "2428"]
[Result "1/2-1/2"]
[Round "2"]
[TimeControl "180+1"]
[Date "2023.08.01"]
[WhiteClock "0:01:18"]
[BlackClock "0:00:17"]
[Board "246"]

1. e4 {[%clk 0:03:00]}  e5 {[%clk 0:02:59]} 2. Nf3 {[%clk 0:03:00]}  Nf6 {[%clk 0:02:59]} 3. Nxe5 {[%clk 0:02:58]}  d6 {[%clk 0:02:59]} 4. Nf3 {[%clk 0:02:58]}  Nxe4 {[%clk 0:03:00]} 5. Nc3 {[%clk 0:02:58]}  Nxc3 {[%clk 0:03:00]} 6. dxc3 {[%clk 0:02:59]}  Be7 {[%clk 0:03:00]} 7. Bd3 {[%clk 0:02:58]}  O-O {[%clk 0:02:58]} 8. Be3 {[%clk 0:02:57]}  Nd7 {[%clk 0:02:59]} 9. Qd2 {[%clk 0:02:57]}  c6 {[%clk 0:02:59]} 10. O-O-O {[%clk 0:02:58]}  d5 {[%clk 0:02:59]} 11. h4 {[%clk 0:02:55]}  Nc5 {[%clk 0:02:57]} 12. Ng5 {[%clk 0:02:54]}  h6 {[%clk 0:02:52]} 13. Nf3 {[%clk 0:02:51]}  Nxd3+ {[%clk 0:02:50]} 14. cxd3 {[%clk 0:02:52]}  Bf6 {[%clk 0:02:49]} 15. Rdg1 {[%clk 0:02:38]}  h5 {[%clk 0:02:22]} 16. Ng5 {[%clk 0:02:35]}  Bf5 {[%clk 0:02:20]} 17. f3 {[%clk 0:02:34]}  Bg6 {[%clk 0:02:18]} 18. g4 {[%clk 0:02:33]}  Re8 {[%clk 0:02:17]} 19. gxh5 {[%clk 0:02:22]}  Bxh5 {[%clk 0:02:18]} 20. Rg2 {[%clk 0:02:08]}  a5 {[%clk 0:02:10]} 21. Rhg1 {[%clk 0:02:08]}  a4 {[%clk 0:02:09]} 22. a3 {[%clk 0:02:04]}  g6 {[%clk 0:02:01]} 23. Nh3 {[%clk 0:01:56]}  d4 {[%clk 0:01:31]} 24. Bg5 {[%clk 0:01:50]}  dxc3 {[%clk 0:01:29]} 25. bxc3 {[%clk 0:01:50]}  Bxg5 {[%clk 0:01:19]} 26. Rxg5 {[%clk 0:01:51]}  Ra5 {[%clk 0:01:09]} 27. Nf4 {[%clk 0:01:40]}  Bxf3 {[%clk 0:01:04]} 28. Nxg6 {[%clk 0:01:20]}  Rxg5 {[%clk 0:01:03]} 29. Rxg5 {[%clk 0:01:21]}  fxg6 {[%clk 0:01:00]} 30. Rxg6+ {[%clk 0:01:21]}  Kf7 {[%clk 0:01:00]} 31. Qh6 {[%clk 0:01:17]}  Re1+ {[%clk 0:00:40]} 32. Kc2 {[%clk 0:01:17]}  Re2+ {[%clk 0:00:34]} 33. Kc1 {[%clk 0:01:17]}  Re1+ {[%clk 0:00:17]} 34. Kc2 {[%clk 0:01:18]}  Re2+ {[%clk 0:00:17]} 35. Kc1 {[%clk 0:01:18]}  Re1+ {[%clk 0:00:17]} 1/2-1/2


[Site "https://www.chess.com"]

[Event "Titled Tuesday Blitz August 1 Early 2023"]
[White "WindWhistler11"]
[Black "Vila Dupla, Aurelio"]
[BlackFideId "2203383"]
[WhiteElo "2428"]
[BlackElo "2133"]
[Result "0-1"]
[Round "2"]
[TimeControl "180+1"]
[Date "2023.08.01"]
[WhiteClock "0:00:57"]
[BlackClock "0:00:57"]
[Board "247"]

1. Nf3 {[%clk 0:03:00]}  Nf6 {[%clk 0:02:58]} 2. g3 {[%clk 0:03:00]}  g6 {[%clk 0:02:58]} 3. b3 {[%clk 0:03:01]}  Bg7 {[%clk 0:02:58]} 4. Bb2 {[%clk 0:03:02]}  O-O {[%clk 0:02:58]} 5. Bg2 {[%clk 0:03:02]}  d6 {[%clk 0:02:59]} 6. d4 {[%clk 0:03:02]}  Nc6 {[%clk 0:02:58]} 7. O-O {[%clk 0:03:02]}  Re8 {[%clk 0:02:59]} 8. Qc1 {[%clk 0:03:03]}  h6 {[%clk 0:02:51]} 9. Rd1 {[%clk 0:03:02]}  d5 {[%clk 0:02:39]} 10. c4 {[%clk 0:02:58]}  Bf5 {[%clk 0:02:38]} 11. Nc3 {[%clk 0:02:56]}  dxc4 {[%clk 0:02:37]} 12. bxc4 {[%clk 0:02:56]}  Ne4 {[%clk 0:02:37]} 13. Nd5 {[%clk 0:02:47]}  Bg4 {[%clk 0:02:14]} 14. Qf4 {[%clk 0:02:40]}  Bxf3 {[%clk 0:02:00]} 15. exf3 {[%clk 0:02:38]}  Nf6 {[%clk 0:02:00]} 16. Nxc7 {[%clk 0:02:06]}  g5 {[%clk 0:01:54]} 17. Qe3 {[%clk 0:01:51]}  Qxc7 {[%clk 0:01:53]} 18. d5 {[%clk 0:01:52]}  Na5 {[%clk 0:01:50]} 19. c5 {[%clk 0:01:51]}  b6 {[%clk 0:01:45]} 20. c6 {[%clk 0:01:48]}  Nc4 {[%clk 0:01:44]} 21. Qb3 {[%clk 0:01:46]}  Nxb2 {[%clk 0:01:43]} 22. Qxb2 {[%clk 0:01:45]}  Nxd5 {[%clk 0:01:43]} 23. Qc2 {[%clk 0:01:44]}  Rad8 {[%clk 0:01:35]} 24. Rac1 {[%clk 0:01:41]}  Nf6 {[%clk 0:01:33]} 25. Re1 {[%clk 0:01:37]}  e6 {[%clk 0:01:30]} 26. Re3 {[%clk 0:01:34]}  Nd5 {[%clk 0:01:29]} 27. Rb3 {[%clk 0:01:35]}  Bf8 {[%clk 0:01:28]} 28. Qc4 {[%clk 0:01:22]}  Bc5 {[%clk 0:01:27]} 29. h4 {[%clk 0:01:20]}  Qxg3 {[%clk 0:01:01]} 30. Qxc5 {[%clk 0:01:05]}  Qxg2+ {[%clk 0:01:01]} 31. Kxg2 {[%clk 0:01:06]}  bxc5 {[%clk 0:01:01]} 32. hxg5 {[%clk 0:01:04]}  hxg5 {[%clk 0:01:01]} 33. Rxc5 {[%clk 0:01:03]}  Rc8 {[%clk 0:01:00]} 34. Rb7 {[%clk 0:00:59]}  Re7 {[%clk 0:01:00]} 35. Rxe7 {[%clk 0:00:58]}  Nxe7 {[%clk 0:00:59]} 36. Rxg5+ {[%clk 0:00:59]}  Kf8 {[%clk 0:00:57]} 37. Ra5 {[%clk 0:01:00]}  Rc7 {[%clk 0:00:56]} 38. Ra6 {[%clk 0:00:57]}  Nxc6 {[%clk 0:00:56]} 39. Kg3 {[%clk 0:00:57]}  Ke7 {[%clk 0:00:57]} 40. Kf4 {[%clk 0:00:58]}  Kf6 {[%clk 0:00:57]} 41. Ke4 {[%clk 0:00:58]}  Ne7 {[%clk 0:00:56]} 42. f4 {[%clk 0:00:58]}  Nd5 {[%clk 0:00:57]} 43. Ra4 {[%clk 0:00:57]}  Nc3+ {[%clk 0:00:57]} 0-1


[Site "https://www.chess.com"]

[Event "Titled Tuesday Blitz August 1 Early 2023"]
[White "Johnson, Ben"]
[Black "Pershina, Elena"]
[WhiteFideId "2010917"]
[BlackFideId "24147516"]
[WhiteElo "2132"]
[BlackElo "2427"]
[Result "0-1"]
[Round "2"]
[TimeControl "180+1"]
[Date "2023.08.01"]
[WhiteClock "0:02:25"]
[BlackClock "0:02:29"]
[Board "248"]

1. Nf3 {[%clk 0:02:58]}  d5 {[%clk 0:02:57]} 2. e3 {[%clk 0:02:58]}  Nf6 {[%clk 0:02:57]} 3. c4 {[%clk 0:02:58]}  c6 {[%clk 0:02:53]} 4. b3 {[%clk 0:02:58]}  Bg4 {[%clk 0:02:51]} 5. Bb2 {[%clk 0:02:58]}  e6 {[%clk 0:02:50]} 6. d4 {[%clk 0:02:53]}  Nbd7 {[%clk 0:02:50]} 7. Be2 {[%clk 0:02:53]}  Bd6 {[%clk 0:02:48]} 8. O-O {[%clk 0:02:53]}  O-O {[%clk 0:02:46]} 9. Nbd2 {[%clk 0:02:53]}  Re8 {[%clk 0:02:45]} 10. Ne5 {[%clk 0:02:49]}  Bxe2 {[%clk 0:02:42]} 11. Qxe2 {[%clk 0:02:50]}  Ne4 {[%clk 0:02:35]} 12. Nxe4 {[%clk 0:02:46]}  dxe4 {[%clk 0:02:36]} 13. f4 {[%clk 0:02:39]}  f6 {[%clk 0:02:32]} 14. Nxd7 {[%clk 0:02:33]}  Qxd7 {[%clk 0:02:33]} 15. f5 {[%clk 0:02:27]}  exf5 {[%clk 0:02:30]} 16. Rxf5 {[%clk 0:02:25]}  Qxf5 {[%clk 0:02:29]} 0-1


[Site "https://www.chess.com"]

[Event "Titled Tuesday Blitz August 1 Early 2023"]
[White "Stachanczyk, Jacek"]
[Black "Levine, David"]
[WhiteFideId "1116657"]
[BlackFideId "2011611"]
[WhiteElo "2425"]
[BlackElo "2100"]
[Result "1-0"]
[Round "2"]
[TimeControl "180+1"]
[Date "2023.08.01"]
[WhiteClock "0:00:09"]
[BlackClock "0:00:00"]
[Board "251"]

1. e4 {[%clk 0:02:56]}  e5 {[%clk 0:02:59]} 2. Nf3 {[%clk 0:02:56]}  Nc6 {[%clk 0:02:59]} 3. Bb5 {[%clk 0:02:55]}  a6 {[%clk 0:02:59]} 4. Ba4 {[%clk 0:02:55]}  Nf6 {[%clk 0:02:59]} 5. O-O {[%clk 0:02:55]}  Be7 {[%clk 0:02:59]} 6. Re1 {[%clk 0:02:55]}  b5 {[%clk 0:02:58]} 7. Bb3 {[%clk 0:02:55]}  d6 {[%clk 0:02:59]} 8. c3 {[%clk 0:02:55]}  O-O {[%clk 0:02:59]} 9. h3 {[%clk 0:02:56]}  Bb7 {[%clk 0:02:59]} 10. d4 {[%clk 0:02:50]}  Re8 {[%clk 0:02:59]} 11. Ng5 {[%clk 0:02:43]}  Rf8 {[%clk 0:02:58]} 12. Nf3 {[%clk 0:02:43]}  Re8 {[%clk 0:02:57]} 13. a4 {[%clk 0:02:44]}  Bf8 {[%clk 0:02:54]} 14. Nbd2 {[%clk 0:02:39]}  h6 {[%clk 0:02:47]} 15. Bc2 {[%clk 0:02:36]}  Nb8 {[%clk 0:02:45]} 16. Bd3 {[%clk 0:02:26]}  c6 {[%clk 0:02:34]} 17. b4 {[%clk 0:02:15]}  Nbd7 {[%clk 0:02:32]} 18. a5 {[%clk 0:02:15]}  Qc7 {[%clk 0:02:30]} 19. c4 {[%clk 0:02:03]}  bxc4 {[%clk 0:02:12]} 20. Nxc4 {[%clk 0:02:03]}  Nxe4 {[%clk 0:02:06]} 21. Bxe4 {[%clk 0:01:59]}  d5 {[%clk 0:02:06]} 22. Bd3 {[%clk 0:01:27]}  dxc4 {[%clk 0:01:51]} 23. Bxc4 {[%clk 0:01:28]}  Bxb4 {[%clk 0:01:50]} 24. Bd2 {[%clk 0:01:21]}  Bxd2 {[%clk 0:01:43]} 25. Qxd2 {[%clk 0:01:19]}  exd4 {[%clk 0:01:40]} 26. Nxd4 {[%clk 0:01:16]}  Ne5 {[%clk 0:01:29]} 27. Qc3 {[%clk 0:00:56]}  Nxc4 {[%clk 0:01:00]} 28. Qxc4 {[%clk 0:00:57]}  Qf4 {[%clk 0:00:56]} 29. Qc5 {[%clk 0:00:51]}  Rxe1+ {[%clk 0:00:49]} 30. Rxe1 {[%clk 0:00:52]}  Rd8 {[%clk 0:00:49]} 31. Nf5 {[%clk 0:00:39]}  Kh7 {[%clk 0:00:33]} 32. Ng3 {[%clk 0:00:27]}  Rd2 {[%clk 0:00:22]} 33. Ne4 {[%clk 0:00:25]}  Rb2 {[%clk 0:00:19]} 34. Qc3 {[%clk 0:00:20]}  Rb5 {[%clk 0:00:10]} 35. Qa1 {[%clk 0:00:16]}  c5 {[%clk 0:00:08]} 36. Nxc5 {[%clk 0:00:11]}  Bxg2 {[%clk 0:00:06]} 37. Kxg2 {[%clk 0:00:09]}  Rxc5 {[%clk 0:00:05]} 38. Qd1 {[%clk 0:00:07]}  Qg5+ {[%clk 0:00:04]} 39. Kf1 {[%clk 0:00:07]}  Rxa5 {[%clk 0:00:04]} 40. Qd3+ {[%clk 0:00:07]}  Qg6 {[%clk 0:00:04]} 41. Qxg6+ {[%clk 0:00:06]}  Kxg6 {[%clk 0:00:03]} 42. Rb1 {[%clk 0:00:06]}  Rb5 {[%clk 0:00:03]} 43. Rc1 {[%clk 0:00:06]}  a5 {[%clk 0:00:03]} 44. Rc6+ {[%clk 0:00:06]}  f6 {[%clk 0:00:03]} 45. Ra6 {[%clk 0:00:07]}  h5 {[%clk 0:00:02]} 46. Kg2 {[%clk 0:00:08]}  Kf5 {[%clk 0:00:01]} 47. h4 {[%clk 0:00:09]}  g5 {[%clk 0:00:01]} 48. hxg5 {[%clk 0:00:09]}  fxg5 {[%clk 0:00:00]} 49. Ra7 {[%clk 0:00:09]} 1-0


[Site "https://www.chess.com"]

[Event "Titled Tuesday Blitz August 1 Early 2023"]
[White "Goughfather"]
[Black "Cheer_Down"]
[WhiteElo "2099"]
[BlackElo "2422"]
[Result "0-1"]
[Round "2"]
[TimeControl "180+1"]
[Date "2023.08.01"]
[WhiteClock "0:00:00"]
[BlackClock "0:01:18"]
[Board "252"]

1. d4 {[%clk 0:02:54]}  Nf6 {[%clk 0:02:59]} 2. Nc3 {[%clk 0:02:54]}  d5 {[%clk 0:02:58]} 3. Bf4 {[%clk 0:02:53]}  c5 {[%clk 0:02:58]} 4. e4 {[%clk 0:02:52]}  Nxe4 {[%clk 0:02:58]} 5. Nxe4 {[%clk 0:02:50]}  dxe4 {[%clk 0:02:58]} 6. dxc5 {[%clk 0:02:50]}  Qa5+ {[%clk 0:02:57]} 7. c3 {[%clk 0:02:18]}  Qxc5 {[%clk 0:02:55]} 8. Qa4+ {[%clk 0:02:15]}  Nc6 {[%clk 0:02:54]} 9. Qxe4 {[%clk 0:02:04]}  Bf5 {[%clk 0:02:54]} 10. Qa4 {[%clk 0:01:55]}  e5 {[%clk 0:02:45]} 11. Be3 {[%clk 0:01:37]}  Qa5 {[%clk 0:02:44]} 12. Qxa5 {[%clk 0:01:33]}  Nxa5 {[%clk 0:02:44]} 13. O-O-O {[%clk 0:01:33]}  Nc6 {[%clk 0:02:32]} 14. Bb5 {[%clk 0:01:14]}  Be7 {[%clk 0:02:31]} 15. Rd5 {[%clk 0:00:24]}  f6 {[%clk 0:02:27]} 16. f4 {[%clk 0:00:12]}  Be4 {[%clk 0:02:24]} 17. Rd2 {[%clk 0:00:11]}  exf4 {[%clk 0:02:13]} 18. Bxf4 {[%clk 0:00:11]}  Rd8 {[%clk 0:02:14]} 19. Rxd8+ {[%clk 0:00:09]}  Kxd8 {[%clk 0:02:13]} 20. Nf3 {[%clk 0:00:10]}  Kc8 {[%clk 0:02:01]} 21. Rd1 {[%clk 0:00:10]}  Rd8 {[%clk 0:01:57]} 22. Bc4 {[%clk 0:00:10]}  Bf5 {[%clk 0:01:51]} 23. h3 {[%clk 0:00:09]}  h5 {[%clk 0:01:49]} 24. Bd5 {[%clk 0:00:06]}  Bc5 {[%clk 0:01:40]} 25. Bxc6 {[%clk 0:00:06]}  Rxd1+ {[%clk 0:01:38]} 26. Kxd1 {[%clk 0:00:05]}  bxc6 {[%clk 0:01:39]} 27. Kd2 {[%clk 0:00:05]}  Be4 {[%clk 0:01:31]} 28. Be3 {[%clk 0:00:04]}  Bd6 {[%clk 0:01:30]} 29. Ke2 {[%clk 0:00:01]}  a6 {[%clk 0:01:23]} 30. Bd4 {[%clk 0:00:01]}  Kd7 {[%clk 0:01:21]} 31. Ke3 {[%clk 0:00:01]}  Bd5 {[%clk 0:01:20]} 32. Bb6 {[%clk 0:00:00]}  Bxa2 {[%clk 0:01:18]} 0-1


[Site "https://www.chess.com"]

[Event "Titled Tuesday Blitz August 1 Early 2023"]
[White "Winkels, Marcel"]
[Black "Titichoca Daza, Daniel"]
[WhiteFideId "1003887"]
[BlackFideId "3309550"]
[WhiteElo "2098"]
[BlackElo "2421"]
[Result "0-1"]
[Round "2"]
[TimeControl "180+1"]
[Date "2023.08.01"]
[WhiteClock "0:00:00"]
[BlackClock "0:00:42"]
[Board "253"]

1. e4 {[%clk 0:03:00]}  c6 {[%clk 0:02:56]} 2. d4 {[%clk 0:03:00]}  d5 {[%clk 0:02:57]} 3. exd5 {[%clk 0:02:59]}  cxd5 {[%clk 0:02:56]} 4. Bd3 {[%clk 0:03:00]}  Nc6 {[%clk 0:02:49]} 5. c3 {[%clk 0:03:00]}  Nf6 {[%clk 0:02:48]} 6. Bf4 {[%clk 0:02:54]}  Bg4 {[%clk 0:02:45]} 7. Nf3 {[%clk 0:02:53]}  e6 {[%clk 0:02:44]} 8. Nbd2 {[%clk 0:02:52]}  Bd6 {[%clk 0:02:43]} 9. Bg3 {[%clk 0:02:43]}  O-O {[%clk 0:02:42]} 10. O-O {[%clk 0:02:38]}  a6 {[%clk 0:02:36]} 11. Qb3 {[%clk 0:02:37]}  Rb8 {[%clk 0:02:33]} 12. Ne5 {[%clk 0:02:34]}  Bxe5 {[%clk 0:02:26]} 13. dxe5 {[%clk 0:02:33]}  Nd7 {[%clk 0:02:26]} 14. Rfe1 {[%clk 0:02:07]}  Nc5 {[%clk 0:02:21]} 15. Qc2 {[%clk 0:02:03]}  Nxd3 {[%clk 0:02:20]} 16. Qxd3 {[%clk 0:02:02]}  Bf5 {[%clk 0:02:21]} 17. Qe2 {[%clk 0:02:02]}  b5 {[%clk 0:02:18]} 18. Rad1 {[%clk 0:01:55]}  b4 {[%clk 0:02:09]} 19. cxb4 {[%clk 0:01:54]}  Nxb4 {[%clk 0:02:04]} 20. Nf3 {[%clk 0:01:40]}  Qb6 {[%clk 0:01:44]} 21. Nd4 {[%clk 0:01:25]}  Bg6 {[%clk 0:01:34]} 22. a3 {[%clk 0:01:22]}  Nc6 {[%clk 0:01:14]} 23. Nxc6 {[%clk 0:01:12]}  Qxc6 {[%clk 0:01:15]} 24. Rc1 {[%clk 0:01:11]}  Qa4 {[%clk 0:01:09]} 25. Rc3 {[%clk 0:00:51]}  h6 {[%clk 0:01:06]} 26. Rec1 {[%clk 0:00:50]}  Kh7 {[%clk 0:01:04]} 27. f3 {[%clk 0:00:43]}  Rb5 {[%clk 0:00:53]} 28. b4 {[%clk 0:00:40]}  a5 {[%clk 0:00:49]} 29. bxa5 {[%clk 0:00:33]}  Qxa5 {[%clk 0:00:48]} 30. Be1 {[%clk 0:00:32]}  Qa7+ {[%clk 0:00:47]} 31. Bf2 {[%clk 0:00:29]}  Qa4 {[%clk 0:00:47]} 32. Bc5 {[%clk 0:00:26]}  Rc8 {[%clk 0:00:44]} 33. Bb4 {[%clk 0:00:23]}  Rxc3 {[%clk 0:00:43]} 34. Rxc3 {[%clk 0:00:00]}  Rxb4 {[%clk 0:00:42]} 0-1


[Site "https://www.chess.com"]

[Event "Titled Tuesday Blitz August 1 Early 2023"]
[White "Wisniowski, Natalie"]
[Black "Davidson, Kevin"]
[WhiteFideId "30929261"]
[BlackFideId "2056810"]
[WhiteElo "2061"]
[BlackElo "2418"]
[Result "0-1"]
[Round "2"]
[TimeControl "180+1"]
[Date "2023.08.01"]
[WhiteClock "0:00:00"]
[BlackClock "0:00:19"]
[Board "255"]

1. e4 {[%clk 0:03:00]}  c5 {[%clk 0:02:59]} 2. d4 {[%clk 0:03:00]}  cxd4 {[%clk 0:02:59]} 3. c3 {[%clk 0:03:01]}  dxc3 {[%clk 0:03:00]} 4. Nxc3 {[%clk 0:03:00]}  Nc6 {[%clk 0:03:00]} 5. Nf3 {[%clk 0:03:00]}  e6 {[%clk 0:03:01]} 6. Bc4 {[%clk 0:03:00]}  a6 {[%clk 0:03:01]} 7. O-O {[%clk 0:02:59]}  b5 {[%clk 0:03:01]} 8. Bb3 {[%clk 0:02:58]}  Na5 {[%clk 0:03:01]} 9. Bf4 {[%clk 0:02:49]}  Nxb3 {[%clk 0:02:59]} 10. Qxb3 {[%clk 0:02:49]}  Ne7 {[%clk 0:02:54]} 11. Bd6 {[%clk 0:02:31]}  Ng6 {[%clk 0:02:53]} 12. Bxf8 {[%clk 0:02:25]}  Nxf8 {[%clk 0:02:54]} 13. Rad1 {[%clk 0:02:10]}  Ng6 {[%clk 0:02:51]} 14. e5 {[%clk 0:02:00]}  Bb7 {[%clk 0:02:40]} 15. Rd3 {[%clk 0:01:35]}  Bxf3 {[%clk 0:02:21]} 16. Rxf3 {[%clk 0:01:35]}  Nxe5 {[%clk 0:02:21]} 17. Rg3 {[%clk 0:01:35]}  O-O {[%clk 0:02:16]} 18. Ne4 {[%clk 0:01:32]}  d5 {[%clk 0:02:10]} 19. Ng5 {[%clk 0:01:13]}  h6 {[%clk 0:02:02]} 20. Nh3 {[%clk 0:00:56]}  Qf6 {[%clk 0:01:48]} 21. Re1 {[%clk 0:00:43]}  Rac8 {[%clk 0:01:44]} 22. Qe3 {[%clk 0:00:12]}  Nc4 {[%clk 0:01:38]} 23. Qe2 {[%clk 0:00:03]}  Qxb2 {[%clk 0:01:22]} 24. Qg4 {[%clk 0:00:03]}  f5 {[%clk 0:01:19]} 25. Qh5 {[%clk 0:00:03]}  Rf6 {[%clk 0:00:25]} 26. Nf4 {[%clk 0:00:02]}  Qd2 {[%clk 0:00:20]} 27. Rf1 {[%clk 0:00:00]}  Qxf4 {[%clk 0:00:19]} 0-1


[Site "https://www.chess.com"]

[Event "Titled Tuesday Blitz August 1 Early 2023"]
[White "Osiecki, Stanislaw"]
[Black "EsmeraldasAnderson03"]
[WhiteFideId "1102990"]
[WhiteElo "2008"]
[BlackElo "2413"]
[Result "0-1"]
[Round "2"]
[TimeControl "180+1"]
[Date "2023.08.01"]
[WhiteClock "0:01:02"]
[BlackClock "0:00:53"]
[Board "259"]

1. e4 {[%clk 0:03:00]}  c5 {[%clk 0:02:59]} 2. c3 {[%clk 0:03:00]}  Nf6 {[%clk 0:02:59]} 3. e5 {[%clk 0:03:00]}  Nd5 {[%clk 0:02:59]} 4. d4 {[%clk 0:03:00]}  cxd4 {[%clk 0:02:59]} 5. Nf3 {[%clk 0:03:00]}  Nc6 {[%clk 0:02:59]} 6. cxd4 {[%clk 0:03:01]}  d6 {[%clk 0:02:59]} 7. Bc4 {[%clk 0:03:00]}  Nb6 {[%clk 0:02:59]} 8. Bb5 {[%clk 0:03:00]}  dxe5 {[%clk 0:02:56]} 9. Nxe5 {[%clk 0:03:00]}  Bd7 {[%clk 0:02:57]} 10. Bxc6 {[%clk 0:03:00]}  Bxc6 {[%clk 0:02:56]} 11. Nxc6 {[%clk 0:03:00]}  bxc6 {[%clk 0:02:56]} 12. O-O {[%clk 0:03:00]}  e6 {[%clk 0:02:56]} 13. Nc3 {[%clk 0:03:00]}  Be7 {[%clk 0:02:56]} 14. Be3 {[%clk 0:03:00]}  O-O {[%clk 0:02:56]} 15. Qg4 {[%clk 0:02:59]}  Nd5 {[%clk 0:02:56]} 16. Nxd5 {[%clk 0:02:57]}  cxd5 {[%clk 0:02:56]} 17. b3 {[%clk 0:02:57]}  Bf6 {[%clk 0:02:55]} 18. Rac1 {[%clk 0:02:52]}  Qb6 {[%clk 0:02:53]} 19. h4 {[%clk 0:02:48]}  Qa6 {[%clk 0:02:46]} 20. Rc2 {[%clk 0:02:43]}  Rfc8 {[%clk 0:02:45]} 21. Rfc1 {[%clk 0:02:40]}  Rxc2 {[%clk 0:02:44]} 22. Rxc2 {[%clk 0:02:40]}  Rc8 {[%clk 0:02:44]} 23. Rxc8+ {[%clk 0:02:39]}  Qxc8 {[%clk 0:02:45]} 24. h5 {[%clk 0:02:36]}  Qc2 {[%clk 0:02:36]} 25. h6 {[%clk 0:02:21]}  Qxa2 {[%clk 0:02:24]} 26. hxg7 {[%clk 0:02:19]}  Qxb3 {[%clk 0:02:19]} 27. Qg3 {[%clk 0:01:58]}  Bxd4 {[%clk 0:01:09]} 28. Qc7 {[%clk 0:01:23]}  Bxe3 {[%clk 0:01:00]} 29. fxe3 {[%clk 0:01:08]}  Qxe3+ {[%clk 0:00:59]} 30. Kh2 {[%clk 0:01:07]}  Kxg7 {[%clk 0:00:58]} 31. Qd8 {[%clk 0:01:02]}  d4 {[%clk 0:00:53]} 0-1


[Site "https://www.chess.com"]

[Event "Titled Tuesday Blitz August 1 Early 2023"]
[White "Krzywda, Andrzej"]
[Black "Navyblue1"]
[WhiteFideId "1114565"]
[WhiteElo "2411"]
[BlackElo "1944"]
[Result "1-0"]
[Round "2"]
[TimeControl "180+1"]
[Date "2023.08.01"]
[WhiteClock "0:01:21"]
[BlackClock "0:00:00"]
[Board "261"]

1. e4 {[%clk 0:03:00]}  c5 {[%clk 0:02:59]} 2. Nf3 {[%clk 0:03:00]}  d6 {[%clk 0:02:58]} 3. d4 {[%clk 0:03:01]}  cxd4 {[%clk 0:02:58]} 4. Nxd4 {[%clk 0:03:02]}  Nf6 {[%clk 0:02:58]} 5. Nc3 {[%clk 0:03:02]}  a6 {[%clk 0:02:58]} 6. Be3 {[%clk 0:03:01]}  e5 {[%clk 0:02:58]} 7. Nb3 {[%clk 0:03:01]}  Be6 {[%clk 0:02:57]} 8. h3 {[%clk 0:03:00]}  Be7 {[%clk 0:02:50]} 9. Qf3 {[%clk 0:03:01]}  Nbd7 {[%clk 0:01:54]} 10. O-O-O {[%clk 0:03:00]}  Rc8 {[%clk 0:01:36]} 11. Kb1 {[%clk 0:02:55]}  b5 {[%clk 0:00:39]} 12. g4 {[%clk 0:02:50]}  Nb6 {[%clk 0:00:19]} 13. g5 {[%clk 0:02:30]}  Nfd7 {[%clk 0:00:18]} 14. h4 {[%clk 0:02:30]}  Nc4 {[%clk 0:00:17]} 15. Bc1 {[%clk 0:02:20]}  b4 {[%clk 0:00:15]} 16. Nd5 {[%clk 0:02:19]}  Bxd5 {[%clk 0:00:15]} 17. exd5 {[%clk 0:02:17]}  Qb6 {[%clk 0:00:13]} 18. Bh3 {[%clk 0:02:15]}  Rc7 {[%clk 0:00:12]} 19. Rhe1 {[%clk 0:01:51]}  a5 {[%clk 0:00:10]} 20. Qe2 {[%clk 0:01:41]}  Nb8 {[%clk 0:00:00]} 21. f4 {[%clk 0:01:21]} 1-0


[Site "https://www.chess.com"]